fUSD/lending_fUSD_20260404
["ID","MTS","AMOUNT","RATE_DAILY","PERIOD"]
[419706824,1775327439991,-150.0,0.00014514,2]
[419706825,1775327440000,-150.0,0.00014523,2]
[419706826,1775327440010,-150.0,0.00014545,2]
[419706827,1775327440019,-150.0,0.00014552,2]
[419706828,1775327440029,-150.0,0.0001456,2]
[419706829,1775327440038,-1902.63121173,0.00014585,2]
[419706830,1775327440048,-150.0,0.00014585,2]
[419706831,1775327440058,-160.9357,0.000146,2]
[419706832,1775327440067,-160.9357,0.000146,2]
[419706833,1775327440077,-160.9357,0.000146,2]
[419706834,1775327440087,-160.9357,0.000146,2]
[419706835,1775327440096,-150.0,0.000146,2]
[419706836,1775327440107,-150.0,0.00014613,2]
[419706837,1775327440117,-150.0,0.00014618,2]
[419706838,1775327440126,-5534.43995105,0.00014621,2]
[419706839,1775327440136,-2813.37291944,0.00014621,2]
[419706840,1775327440146,-293.207809,0.00014622,7]
[419706841,1775327440156,-175.924685,0.00014622,7]
[419706842,1775327440165,-150.0,0.00014629,2]
[419706845,1775327440175,-150.0,0.00014629,2]
[419706846,1775327440184,-150.0,0.0001464,2]
[419706848,1775327440194,-150.0,0.00014646,2]
[419706850,1775327440204,-150.0,0.00014667,2]
[419706852,1775327440213,-166.66,0.0001467,2]
[419706853,1775327440223,-150.0,0.00014691,2]
[419706854,1775327440232,-160.9357,0.000147,2]
[419706855,1775327440241,-160.9357,0.000147,2]
[419706856,1775327440251,-160.9357,0.000147,2]
[419706857,1775327440260,-160.9357,0.000147,2]
[419706858,1775327440269,-150.0,0.00014705,2]
[419706859,1775327440279,-150.0,0.00014708,2]
[419706860,1775327440289,-518.0,0.00014709,2]
[419706861,1775327440299,-150.0,0.0001472,2]
[419706862,1775327440309,-150.0,0.0001472,2]
[419706863,1775327440318,-150.0,0.00014743,2]
[419706864,1775327440327,-150.0,0.00014764,2]
[419706865,1775327440337,-150.0,0.00014769,2]
[419706866,1775327440346,-150.0,0.00014781,2]
[419706867,1775327440356,-160.9357,0.000148,2]
[419706868,1775327440365,-160.9357,0.000148,2]
[419706869,1775327440374,-160.9357,0.000148,2]
[419706870,1775327440384,-160.9357,0.000148,2]
[419706871,1775327440393,-150.0,0.000148,2]
[419706872,1775327440403,-150.0,0.000148,2]
[419706873,1775327440412,-150.0,0.000148,2]
[419706874,1775327440422,-167.21,0.00014822,2]
[419706875,1775327440431,-150.0,0.00014827,2]
[419706876,1775327440440,-150.0,0.00014831,2]
[419706877,1775327440450,-150.0,0.00014836,2]
[419706878,1775327440459,-785.54,0.00014849,2]
[419706879,1775327440469,-150.0,0.00014857,2]
[419706880,1775327440478,-150.0,0.00014857,2]
[419706881,1775327440488,-518.0,0.00014864,2]
[419706882,1775327440498,-5534.43995105,0.00014877,2]
[419706883,1775327440507,-2813.37291944,0.00014877,2]
[419706884,1775327440516,-150.0,0.0001488,2]
[419706885,1775327440526,-150.0,0.00014892,2]
[419706886,1775327440536,-160.9357,0.000149,2]
[419706887,1775327440546,-160.9357,0.000149,2]
[419706888,1775327440555,-160.9357,0.000149,2]
[419706889,1775327440565,-160.9357,0.000149,2]
[419706890,1775327440576,-150.0,0.00014909,2]
[419706891,1775327440585,-1902.63121173,0.00014913,2]
[419706892,1775327440595,-350.87215084,0.00014921,2]
[419706893,1775327440605,-447.27023195,0.00014921,2]
[419706894,1775327440615,-1000.0,0.00014921,2]
[419706895,1775327440624,-500.0,0.00014921,2]
[419706896,1775327440634,-505.31465094,0.00014921,2]
[419706897,1775327440644,-1000.0,0.00014921,2]
[419706898,1775327440653,-500.0,0.00014921,2]
[419706899,1775327440662,-326.02015785,0.00014921,2]
[419706900,1775327440673,-602.10958763,0.00014921,2]
[419706901,1775327440682,-502.03101859,0.00014921,2]
[419706902,1775327440691,-597.01949969,0.00014921,2]
[419706903,1775327440702,-502.19050137,0.00014921,2]
[419706904,1775327440711,-1004.16690782,0.00014921,2]
[419706905,1775327440720,-952.97866013,0.00014921,2]
[419706906,1775327440730,-1000.0,0.00014921,2]
[419706907,1775327440739,-1000.0,0.00014921,2]
[419706908,1775327440748,-150.0,0.00014933,2]
[419706909,1775327440758,-150.0,0.00014933,2]
[419706910,1775327440767,-150.0,0.00014933,2]
[419706911,1775327440776,-150.0,0.00014954,2]
[419706912,1775327440786,-150.0,0.0001496,2]
[419706913,1775327440795,-150.0,0.00014971,2]
[419706914,1775327440804,-166.66,0.00014979,2]
[419706915,1775327440814,-150.0,0.00014982,2]
[419706916,1775327440824,-160.9357,0.00015,2]
[419706917,1775327440834,-160.9357,0.00015,2]
[419706918,1775327440843,-160.9357,0.00015,2]
[419706919,1775327440853,-160.9357,0.00015,2]
[419706920,1775327440863,-150.0,0.00015,2]
[419706921,1775327440872,-150.0,0.0001501,2]
[419706922,1775327440882,-150.0,0.00015015,2]
[419706923,1775327440892,-1572.0,0.0001504,2]
[419706924,1775327440901,-150.0,0.0001504,2]
[419706925,1775327440910,-150.0,0.0001504,2]
[419706926,1775327440919,-276.0,0.0001505,2]
[419706927,1775327440929,-150.0,0.00015055,2]
[419706928,1775327440938,-150.0,0.00015077,2]
[419706929,1775327440948,-150.0,0.00015086,2]
[419706930,1775327440957,-150.0,0.00015086,2]
[419706931,1775327440967,-1602.77615534,0.00015098,2]
[419706932,1775327440976,-165.06846975,0.00015107,2]
[419706933,1775327440986,-150.0,0.0001512,2]
[419706934,1775327440996,-785.54,0.00015123,2]
[419706935,1775327441006,-150.0,0.00015127,2]
[419706936,1775327441015,-5534.43995105,0.00015133,2]
[419706937,1775327441025,-2813.37291944,0.00015133,2]
[419706938,1775327441035,-150.0,0.00015138,2]
[419706939,1775327441044,-150.0,0.00015147,2]
[419706940,1775327441054,-1522.0,0.0001516,2]
[419706941,1775327441064,-150.0,0.00015162,2]
[419706942,1775327441074,-1000.0,0.0001517,2]
[419706943,1775327441083,-500.0,0.00015199,2]
[419706944,1775327441093,-200.0,0.00015199,2]
[419706945,1775327441103,-743.50770149,0.00015199,2]
[419706946,1775327441112,-500.0,0.00015199,2]
[419706947,1775327441122,-500.0,0.00015199,2]
[419706948,1775327441131,-500.0,0.00015199,2]
[419706949,1775327441143,-500.0,0.00015199,2]
[419706950,1775327441152,-500.0,0.00015199,2]
[419706951,1775327441161,-500.0,0.00015199,2]
[419706952,1775327441171,-500.0,0.00015199,2]
[419706953,1775327441180,-319.32250207,0.00015199,2]
[419706954,1775327441189,-174.61919141,0.00015199,2]
[419706955,1775327441199,-151.0,0.00015199,2]
[419706956,1775327441209,-207.78425205,0.00015199,2]
[419706957,1775327441218,-150.0,0.000152,2]
[419706958,1775327441228,-150.0,0.000152,2]
[419706959,1775327441237,-150.0,0.000152,2]
[419706960,1775327441247,-150.0,0.000152,2]
[419706961,1775327441256,-150.0,0.000152,2]
[419706962,1775327441265,-150.0,0.000152,2]
[419706963,1775327441275,-150.0,0.000152,2]
[419706964,1775327441284,-161.86,0.00015211,2]
[419706965,1775327441293,-168.0,0.00015234,2]
[419706966,1775327441303,-150.0,0.00015238,2]
[419706967,1775327441312,-1902.63121173,0.00015242,2]
[419706968,1775327441321,-1522.0,0.00015249,2]
[419706969,1775327441331,-150.0,0.00015253,2]
[419706970,1775327441340,-500.0,0.00015254,2]
[419706971,1775327441349,-151.0,0.00015254,2]
[419706972,1775327441359,-150.0,0.00015262,2]
[419706973,1775327441368,-150.0,0.00015273,2]
[419706974,1775327441377,-150.0,0.0001528,2]
[419706975,1775327441387,-166.66,0.00015288,2]
[419706976,1775327441396,-350.0,0.00015302,2]
[419706977,1775327441406,-500.0,0.00015309,2]
[419706978,1775327441415,-151.0,0.00015309,2]
[419706979,1775327441425,-237.20317304,0.00015311,2]
[419706980,1775327441434,-270.09576781,0.00015311,2]
[419706981,1775327441443,-150.0,0.00015314,2]
[419706982,1775327441453,-150.0,0.00015314,2]
[419706983,1775327441462,-159.70136449,0.00015315,2]
[419706984,1775327441471,-672.0,0.00015321,2]
[419706985,1775327441480,-672.0,0.00015321,2]
[419706986,1775327441490,-672.0,0.00015321,2]
[419706987,1775327441500,-672.0,0.00015321,2]
[419706988,1775327441509,-672.0,0.00015321,2]
[419706989,1775327441812,-672.0,0.00015321,2]
[419706990,1775327441823,-672.0,0.00015321,2]
[419706991,1775327441833,-672.0,0.00015321,2]
[419706992,1775327441842,-672.0,0.00015321,2]
[419706993,1775327441853,-672.0,0.00015321,2]
[419706994,1775327441862,-672.0,0.00015321,2]
[419706995,1775327441872,-672.0,0.00015321,2]
[419706996,1775327441881,-672.0,0.00015321,2]
[419706997,1775327441891,-672.0,0.00015321,2]
[419706998,1775327441900,-672.0,0.00015321,2]
[419706999,1775327441909,-672.0,0.00015321,2]
[419707000,1775327441919,-672.0,0.00015321,2]
[419707001,1775327441929,-672.0,0.00015321,2]
[419707002,1775327441938,-672.0,0.00015321,2]
[419707003,1775327441947,-672.0,0.00015321,2]
[419707004,1775327441956,-672.0,0.00015321,2]
[419707005,1775327441966,-672.0,0.00015321,2]
[419707006,1775327441975,-672.0,0.00015321,2]
[419707007,1775327441984,-692.53940565,0.00015321,2]
[419707008,1775327441993,-4387.0,0.00015321,2]
[419707009,1775327442002,-4387.0,0.00015321,2]
[419707010,1775327442011,-4387.0,0.00015321,2]
[419707011,1775327442021,-4387.0,0.00015321,2]
[419707012,1775327442031,-4387.0,0.00015321,2]
[419707013,1775327442040,-4387.0,0.00015321,2]
[419707014,1775327442049,-4387.0,0.00015321,2]
[419707015,1775327442058,-4387.0,0.00015321,2]
[419707016,1775327442068,-4387.0,0.00015321,2]
[419707017,1775327442077,-4387.0,0.00015321,2]
[419707018,1775327442086,-4387.0,0.00015321,2]
[419707019,1775327442096,-4387.0,0.00015321,2]
[419707020,1775327442105,-4387.0,0.00015321,2]
[419707021,1775327442113,-4387.0,0.00015321,2]
[419707022,1775327442123,-4387.0,0.00015321,2]
[419707023,1775327442132,-4387.0,0.00015321,2]
[419707024,1775327442141,-4387.0,0.00015321,2]
[419707025,1775327442151,-4387.0,0.00015321,2]
[419707026,1775327442160,-4387.0,0.00015321,2]
[419707027,1775327442169,-4387.0,0.00015321,2]
[419707028,1775327442178,-4387.0,0.00015321,2]
[419707029,1775327442187,-4387.0,0.00015321,2]
[419707030,1775327442196,-4387.0,0.00015321,2]
[419707031,1775327442206,-4399.29355466,0.00015321,2]
[419707032,1775327442215,-150.0,0.00015323,2]
[419707033,1775327442225,-150.0,0.00015329,2]
[419707034,1775327442234,-150.0,0.00015329,2]
[419707035,1775327442243,-150.0,0.00015329,2]
[419707036,1775327442252,-216.19443643,0.00015329,2]
[419707037,1775327442262,-1522.0,0.00015332,2]
[419707038,1775327442271,-150.0,0.00015345,2]
[419707039,1775327442280,-150.0,0.0001536,2]
[419707040,1775327442289,-150.0,0.0001536,2]
[419707041,1775327442299,-186.0,0.0001536,2]
[419707042,1775327442308,-500.0,0.00015364,2]
[419707043,1775327442318,-151.0,0.00015364,2]
[419707044,1775327442327,-150.0,0.00015385,2]
[419707045,1775327442336,-5534.43995105,0.00015388,2]
[419707046,1775327442346,-2813.37291944,0.00015388,2]
[419707047,1775327442356,-150.0,0.0001539,2]
[419707048,1775327442365,-785.54,0.00015397,2]
[419707049,1775327442374,-150.0,0.000154,2]
[419707050,1775327442384,-563.32898353,0.00015401,2]
[419707051,1775327442394,-1522.0,0.00015415,2]
[419707052,1775327442403,-150.0,0.00015418,2]
[419707053,1775327442412,-500.0,0.00015419,2]
[419707054,1775327442422,-151.0,0.00015419,2]
[419707055,1775327442431,-150.0,0.00015429,2]
[419707056,1775327442440,-150.0,0.0001544,2]
[419707057,1775327442449,-150.0,0.00015446,2]
[419707058,1775327442459,-223.0,0.00015455,2]
[419707059,1775327442468,-150.0,0.00015467,2]
[419707060,1775327442479,-150.0,0.00015467,2]
[419707061,1775327442488,-150.0,0.00015467,2]
[419707062,1775327442497,-168.0,0.00015467,2]
[419707063,1775327442508,-331.51791405,0.00015468,2]
[419707064,1775327442517,-1003.04138262,0.00015468,2]
[419707065,1775327442526,-1500.0,0.00015468,2]
[419707066,1775327442536,-1500.0,0.00015468,2]
[419707067,1775327442545,-500.0,0.00015474,2]
[419707068,1775327442559,-151.0,0.00015474,2]
[419707069,1775327442569,-1522.0,0.00015483,2]
[419707070,1775327442579,-150.0,0.00015491,2]
[419707071,1775327442589,-160.9357,0.000155,2]
[419707072,1775327442600,-2000.0,0.00015501,2]
[419707073,1775327442611,-2937.27,0.00015507,2]
[419707074,1775327442620,-150.0,0.00015508,2]
[419707075,1775327442630,-150.0,0.0001552,2]
[419707076,1775327442640,-500.0,0.00015529,2]
[419707077,1775327442650,-151.0,0.00015529,2]
[419707078,1775327442660,-150.0,0.00015543,2]
[419707079,1775327442669,-150.0,0.00015543,2]
[419707080,1775327442679,-150.0,0.00015564,2]
[419707081,1775327442688,-161.86,0.00015566,2]
[419707082,1775327442698,-150.0,0.00015569,2]
[419707083,1775327442708,-1902.63121173,0.00015571,2]
[419707084,1775327442719,-150.0,0.00015573,2]
[419707085,1775327442729,-500.0,0.00015584,2]
[419707087,1775327442739,-151.0,0.00015584,2]
[419707088,1775327442749,-500.0,0.00015588,4]
[419707089,1775327442759,-166.66,0.00015597,2]
[419707090,1775327442769,-160.9357,0.000156,2]
[419707091,1775327442778,-150.0,0.000156,2]
[419707092,1775327442787,-150.0,0.000156,2]
[419707094,1775327442797,-150.0,0.000156,2]
[419707095,1775327442807,-2000.0,0.000156,2]
[419707096,1775327442816,-2000.0,0.00015601,2]
[419707097,1775327442825,-1522.0,0.00015607,2]
[419707098,1775327442837,-150.0,0.00015619,2]
[419707099,1775327442847,-168.0,0.00015622,2]
[419707100,1775327442856,-150.0,0.00015631,2]
[419707101,1775327442866,-356.21310421,0.00015633,2]
[419707102,1775327442876,-150.0,0.00015636,2]
[419707103,1775327442885,-400.16775821,0.00015637,2]
[419707104,1775327442895,-500.0,0.00015639,2]
[419707106,1775327442904,-151.0,0.00015639,2]
[419707107,1775327442915,-5534.43995105,0.00015644,2]
[419707108,1775327442925,-2813.37291944,0.00015644,2]
[419707109,1775327442935,-150.0,0.00015657,2]
[419707110,1775327442945,-209.23,0.00015671,2]
[419707111,1775327442955,-2806.0,0.0001568,2]
[419707112,1775327442964,-3064.47914411,0.0001568,2]
[419707113,1775327442974,-150.0,0.0001568,2]
[419707114,1775327442983,-150.0,0.0001568,2]
[419707115,1775327442992,-150.0,0.00015692,2]
[419707116,1775327443002,-500.0,0.00015694,2]
[419707117,1775327443011,-151.0,0.00015694,2]
[419707118,1775327443021,-150.0,0.00015695,2]
[419707119,1775327443031,-160.9357,0.000157,2]
[419707120,1775327443041,-2000.0,0.00015701,2]
[419707121,1775327443050,-150.0,0.00015709,2]
[419707122,1775327443060,-900.0,0.00015726,2]
[419707124,1775327443070,-500.0,0.00015726,2]
[419707125,1775327443080,-168.0,0.00015733,2]
[419707126,1775327443090,-150.0,0.00015733,2]
[419707127,1775327443100,-150.0,0.00015742,2]
[419707128,1775327443110,-150.0,0.00015743,2]
[419707129,1775327443120,-200.0,0.00015747,2]
[419707130,1775327443131,-658.53755309,0.00015747,2]
[419707131,1775327443141,-181.08010149,0.00015747,2]
[419707132,1775327443151,-167.21,0.00015748,2]
[419707133,1775327443161,-500.0,0.00015749,2]
[419707134,1775327443172,-151.0,0.00015749,2]
[419707135,1775327443181,-350.0,0.00015753,3]
[419707136,1775327443191,-150.0,0.00015754,2]
[419707137,1775327443201,-150.0,0.0001576,2]
[419707138,1775327443210,-950.0,0.00015761,2]
[419707139,1775327443220,-950.0,0.00015761,2]
[419707140,1775327443231,-950.0,0.00015761,2]
[419707141,1775327443240,-950.0,0.00015761,2]
[419707142,1775327443250,-950.0,0.00015761,2]
[419707143,1775327443259,-950.0,0.00015761,2]
[419707144,1775327443269,-950.0,0.00015761,2]
[419707145,1775327443278,-950.0,0.00015761,2]
[419707146,1775327443288,-950.0,0.00015761,2]
[419707147,1775327443298,-785.0,0.00015761,2]
[419707148,1775327443308,-807.84316326,0.00015766,2]
[419707149,1775327443317,-150.0,0.00015771,2]
[419707150,1775327443327,-150.0,0.00015771,2]
[419707151,1775327443336,-150.0,0.00015782,2]
[419707152,1775327443347,-150.0,0.00015787,2]
[419707153,1775327443357,-231.76270005,0.00015794,2]
[419707154,1775327443367,-160.9357,0.000158,2]
[419707155,1775327443377,-150.0,0.000158,2]
[419707156,1775327443392,-2000.0,0.000158,2]
[419707157,1775327443402,-2000.0,0.00015801,2]
[419707158,1775327443412,-150.0,0.00015803,2]
[419707159,1775327443423,-1263.0,0.00015803,2]
[419707160,1775327443434,-1046.0,0.00015803,2]
[419707161,1775327443444,-6019.0,0.00015803,2]
[419707162,1775327443454,-150.0,0.00015815,2]
[419707163,1775327443464,-1000.0,0.00015817,2]
[419707164,1775327443474,-201.93,0.00015835,2]
[419707165,1775327443484,-1000.0,0.00015835,2]
[419707166,1775327443495,-150.0,0.0001584,2]
[419707167,1775327443506,-1000.0,0.0001584,2]
[419707168,1775327443516,-1900.0,0.00015846,2]
[419707169,1775327443526,-1900.0,0.00015846,2]
[419707170,1775327443536,-1900.0,0.00015846,2]
[419707171,1775327443546,-1900.0,0.00015846,2]
[419707172,1775327443556,-1900.0,0.00015846,2]
[419707173,1775327443566,-1900.0,0.00015846,2]
[419707174,1775327443577,-1900.0,0.00015846,2]
[419707175,1775327443587,-1900.0,0.00015846,2]
[419707176,1775327443598,-1900.0,0.00015846,2]
[419707177,1775327443608,-1715.0,0.00015846,2]
[419707178,1775327443618,-150.0,0.00015847,2]
[419707179,1775327443628,-150.0,0.00015847,2]
[419707180,1775327443639,-150.0,0.00015847,2]
[419707181,1775327443649,-217.0,0.00015847,2]
[419707182,1775327443659,-150.0,0.00015848,2]
[419707183,1775327443668,-245.407609,0.00015854,2]
[419707184,1775327443678,-150.0,0.00015855,2]
[419707185,1775327443688,-500.0,0.00015871,2]
[419707186,1775327443698,-500.0,0.00015872,2]
[419707187,1775327443708,-200.0,0.00015872,2]
[419707188,1775327443717,-150.0,0.00015877,2]
[419707189,1775327443727,-150.0,0.00015878,2]
[419707190,1775327443738,-150.0,0.00015886,2]
[419707191,1775327443748,-2000.0,0.0001589,2]
[419707192,1775327443758,-150.0,0.00015893,2]
[419707193,1775327443768,-2937.27,0.00015895,2]
[419707194,1775327443778,-160.9357,0.000159,2]
[419707195,1775327443788,-604.90515633,0.000159,2]
[419707196,1775327443798,-165.06846975,0.000159,2]
[419707197,1775327443809,-5534.43995105,0.000159,2]
[419707198,1775327443819,-2813.37291944,0.000159,2]
[419707199,1775327443829,-217.47992615,0.000159,2]
[419707200,1775327443839,-1902.63121173,0.000159,2]
[419707201,1775327443848,-1602.77615534,0.000159,2]
[419707202,1775327443858,-2002.0,0.000159,5]
[419707203,1775327443868,-1605.0,0.000159,5]
[419707204,1775327443878,-2000.0,0.00015901,2]
[419707205,1775327443889,-166.66,0.00015905,2]
[419707206,1775327443899,-350.0,0.00015916,2]
[419707207,1775327443909,-2351.0,0.00015916,2]
[419707208,1775327443919,-150.0,0.0001592,2]
[419707209,1775327443929,-150.0,0.00015924,2]
[419707210,1775327443939,-150.0,0.00015927,2]
[419707211,1775327443949,-1522.0,0.00015937,2]
[419707212,1775327443959,-150.0,0.00015938,2]
[419707213,1775327443969,-150.0,0.00015951,2]
[419707214,1775327443979,-1000.0,0.00015954,2]
[419707215,1775327443988,-1000.0,0.00015964,2]
[419707216,1775327443998,-167.69714494,0.00015984,2]
[419707217,1775327444009,-222.89727349,0.0001599,2]
[419707218,1775327444018,-161.86,0.00015992,2]
[419707219,1775327444028,-546786.2759383,0.00015999,2]
[419707220,1775327444037,-1406.48541366,0.00015999,2]
[419707222,1775327444111,-663.8762983,0.00015999,2]
[419707223,1775327444130,-1262.82955123,0.00015999,2]
[419707224,1775327444142,-1160.01499011,0.00015999,2]
[419707225,1775327444158,-2827.6747641,0.00015999,2]
[419707226,1775327444168,-1222.599728,0.00015999,2]
[419707227,1775327444180,-3742.56283388,0.00015999,2]
[419707228,1775327444200,-1855.85595096,0.00015999,2]
[419707229,1775327444923,-665.0,0.00015145,2]
[419707230,1775327444942,-335.0,0.00015145,2]
[419707231,1775327444954,-9158.57215596,0.00015999,2]
[419707232,1775327444963,-151.0,0.00015999,2]
[419707233,1775327444972,-151.0,0.00015999,2]
[419707234,1775327444981,-151.0,0.00015999,2]
[419707235,1775327444991,-151.0,0.00015999,2]
[419707236,1775327445000,-151.0,0.00015999,2]
[419707237,1775327445009,-151.0,0.00015999,2]
[419707238,1775327445018,-151.0,0.00015999,2]
[419707239,1775327445028,-151.0,0.00015999,2]
[419707240,1775327445037,-151.0,0.00015999,2]
[419707241,1775327445046,-1044.444306,0.00015999,2]
[419707242,1775327445055,-1044.444306,0.00015999,2]
[419707243,1775327445065,-1044.444306,0.00015999,2]
[419707244,1775327445074,-1044.444306,0.00015999,2]
[419707245,1775327445083,-1887.5461835,0.00015999,2]
[419707246,1775327445092,-22475.590905,0.00015999,2]
[419707247,1775327446276,-742.21600639,0.00015803,2]
[419707248,1775327446425,-550.010674,0.00015803,2]
[419707249,1775327446457,-2228.77331961,0.00015803,2]
[419707250,1775327446466,-4075.3560723,0.00015999,2]
[419707251,1775327447191,-1078.36101147,0.00015679,2]
[419707252,1775327447204,-1039.39128494,0.00015679,2]
[419707253,1775327447218,-4636.66619371,0.00015999,2]
[419707254,1775327449179,-420.67928998,0.00015679,2]
[419707255,1775327449568,-696.37891102,0.00015679,2]
[419707256,1775327449581,-606.59288445,0.00015679,2]
[419707257,1775327449681,-335.819307,0.00015679,2]
[419707898,1775328333588,-150.0,0.00014297,30]
[419707899,1775328333624,-150.0,0.0001517,30]
[419707900,1775328333674,-150.0,0.00016042,30]
[419707901,1775328333697,-212.96031429,0.00016101,30]
[419707902,1775328333729,-161.81,0.00016632,30]
[419707903,1775328333756,-150.0,0.00016915,30]
[419707904,1775328350286,-163.0,0.00016001,20]
[419707905,1775328358937,-150.0,0.00017788,30]
[419707906,1775328358967,-150.0,0.00018332,30]
[419707907,1775328370654,-159.73,0.00016454,7]
[419707908,1775328370678,-282.5,0.00016464,7]
[419707909,1775328370702,-290.23,0.00016464,7]
[419707910,1775328370730,-168.87,0.00016906,7]
[419707911,1775328370755,-193.8,0.00016915,7]
[419707912,1775328370780,-500.0,0.00017096,7]
[419707913,1775328370804,-900.0,0.00017096,7]
[419707914,1775328370830,-175.924685,0.00017129,7]
[419707915,1775328370854,-159.74,0.00017238,7]
[419707916,1775328370882,-500.0,0.00018192,7]
[419707917,1775328370908,-900.0,0.00018192,7]
[419707918,1775328370939,-500.0,0.00019288,7]
[419707919,1775328370964,-900.0,0.00019288,7]
[419707920,1775328370989,-175.924685,0.00019364,7]
[419707921,1775328372948,200.0,0.0002,10]
[419707922,1775328380820,-2011.0,0.000159,5]
[419707923,1775328380874,-300.0,0.00018,5]
[419707928,1775328633704,-150.0,0.00011162,2]
[419707929,1775328633714,-1690.47,0.00011507,2]
[419707930,1775328633723,-500.0,0.00012298,2]
[419707931,1775328633732,-200.0,0.00012335,2]
[419707932,1775328633742,-2000.0,0.00012411,2]
[419707933,1775328633751,-1056.37,0.00012539,2]
[419707934,1775328633760,-260.28,0.00012805,2]
[419707935,1775328633769,-250.0,0.00013,2]
[419707936,1775328633779,-1200.0,0.00013054,2]
[419707937,1775328633788,-6973.6711,0.00013055,2]
[419707938,1775328633797,-2500.0,0.00013055,2]
[419707939,1775328633807,-169.135,0.00013055,2]
[419707940,1775328633816,-2645.212,0.00013055,2]
[419707941,1775328633826,-150.0,0.00013072,2]
[419707942,1775328633835,-9999.99,0.00013073,2]
[419707943,1775328633844,-299.99,0.00013073,2]
[419707944,1775328633853,-999.99,0.00013073,2]
[419707945,1775328633862,-150.99,0.00013073,2]
[419707946,1775328633871,-5791.26,0.00013073,2]
[419707947,1775328633880,-4999.99,0.00013073,2]
[419707948,1775328633889,-18846.22841188,0.00013073,2]
[419707949,1775328633898,-181.1958867,0.00013073,2]
[419707950,1775328633907,-2456.33359065,0.00013073,2]
[419707951,1775328633917,-7613.80283452,0.00013073,2]
[419707952,1775328633926,-165.06846975,0.00013087,2]
[419707953,1775328633936,-500.0,0.00013111,2]
[419707954,1775328633946,-222.8972735,0.00013145,2]
[419707955,1775328633955,-200.0,0.00013147,2]
[419707956,1775328633964,-151.0,0.00013147,2]
[419707957,1775328633974,-151.0,0.00013147,2]
[419707958,1775328633983,-151.0,0.00013147,2]
[419707959,1775328633992,-151.0,0.00013147,2]
[419707960,1775328634002,-151.0,0.00013147,2]
[419707961,1775328634011,-151.0,0.00013147,2]
[419707962,1775328634020,-151.0,0.00013147,2]
[419707963,1775328634030,-151.0,0.00013147,2]
[419707964,1775328634039,-151.0,0.00013152,2]
[419707965,1775328634049,-151.0,0.00013152,2]
[419707966,1775328634059,-241.95460988,0.00013154,2]
[419707967,1775328634068,-500.0,0.00013154,2]
[419707968,1775328634079,-500.0,0.00013154,2]
[419707969,1775328634088,-321.86820786,0.00013154,2]
[419707970,1775328634098,-44249.08607998,0.00013155,2]
[419707971,1775328634125,-5333.84,0.00013155,2]
[419707977,1775328638357,-450.0,0.00013155,2]
[419707978,1775328638478,-2449967.07392002,0.00013155,2]
[419707979,1775328638488,-500.0,0.00013173,2]
[419707980,1775328638508,-500.0,0.00013173,2]
[419707981,1775328638519,-500.0,0.00013173,2]
[419707982,1775328638529,-500.0,0.00013173,2]